Cogmind - Beta 16.1 @@@ ROGUE MODE // 2026.03.31 @ 22:57:51 Player: the Result: Destroyed by LE-X65(R) with Subdweller Machine Gun Performance ------------- Evolutions (0) 0 Regions Visited (2) 400 Robots Destroyed (1) 5 Value Destroyed (10) 10 Prototype IDs (13) 260 Alien Tech Used (0) 0 Bonus (0) 0 TOTAL SCORE: 675 Bonus ------- None Cogmind --------- Core Integrity 0/250 Matter 265/300 Energy 100/100 System Corruption 0% Temperature Cool (0) Movement Flying (35) Location -10/Subcaves Parts ------- > --- POWER (1) -------- (None) > --- PROPULSION (2) --- VTOL Module > --- UTILITY (2) ------ Structural Scanner > --- WEAPON (2) ------- (None) > --- INVENTORY (5) ---- VTOL Module VTOL Module Medium Storage Unit Peak State ------------ > --- POWER ------------ (None) > --- PROPULSION ------- (None) > --- UTILITY ---------- Structural Scanner Makeshift Light Armor Plating > --- WEAPON ----------- (None) > --- INVENTORY -------- VTOL Module VTOL Module VTOL Module VTOL Module Medium Storage Unit [Rating: 5] Favorites ----------- Power None Propulsion Flight Unit Treads Light Treads Wheel Compact Wheel Flight Unit Flight Unit Utility Structural Scanner Device Structural Scanner Protection Makeshift Light Armor Plating Weapon None Build | -11 -10 -10 ------- Run | Yrd Mat Sub Slots Evolved . | . . . Power . | . . . Propulsion . | . . . Utility . | . . . Weapon . | . . . Parts Attached 9 | 2 4 3 Power . | . . . Engine . | . . . Core . | . . . Reactor . | . . . Propulsion 6 | 2 2 2 Treads 2 | 2 . . Leg . | . . . Wheel 1 | . 1 . Hover . | . . . Flight 3 | . 1 2 Utility 3 | . 2 1 Device 2 | . 2 . Storage . | . . . Processor . | . . . Hackware . | . . . Protection 1 | . . 1 Artifact . | . . . Weapon . | . . . Energy Gun . | . . . Energy Cannon . | . . . Ballistic Gun . | . . . Ballistic Cannon . | . . . Launcher . | . . . Special Weapon . | . . . Impact Weapon . | . . . Slashing Weapon . | . . . Piercing Weapon . | . . . Special Melee Weapon . | . . . Unidentified Prototypes . | . . . Parts Lost 5 | . 2 3 Power . | . . . Propulsion 4 | . 2 2 Utility 1 | . . 1 Weapon . | . . . Highest Loss Streak 2 | . 2 2 To Critical Strikes . | . . . Average Backups 4 | 1 4 4 Power . | . . . Propulsion 3 | 1 3 3 Utility . | . 1 1 Weapon . | . . . Tool/Special . | . . . Unused Backups 7 | . 4 3 Power 1 | . 1 . Propulsion 4 | . 2 2 Utility 2 | . 1 1 Weapon . | . . . Tool/Special . | . . . Average Slot Usage (%) 39 | . 45 36 Treads 4 | . 14 . Flight 11 | . 6 13 Device 23 | . 23 23 Peak Build Rating 5 | 2 4 5 Average Rating 2 | 1 3 2 On Entrance 1 | . 2 3 Avg Prop Armor Cover (%) 38 | 41 37 . Naked Turns . | . . . Heaviest Build 5 | . 2 5 Greatest Support 40 | 3 40 8 Greatest Overweight (x) 1 | . . 1 Average Overweight (x) . | . . . Largest Inventory Capacity 5 | 5 5 5 Average Capacity 5 | 5 5 5 Most Carried 5 | 4 5 5 Average Carried 4 | 1 4 4 Final Capacity 5 | 5 5 5 Final Carried 5 | 4 5 3 Class Distribution -------------------- 90% | Mutant 9% | Sprinter Dominant Class ---------------- Mutant | -10/Materials Mutant | -10/Subcaves Resources | -11 -10 -10 ----------- Run | Yrd Mat Sub Matter Collected 188 | 74 . 114 Remotely . | . . . Salvage Created . | . . . Parts 1 | . 1 . Haulers Intercepted . | . . . Recyclers Shooed . | . . . Parts Field Recycled . | . . . Retrieved Matter . | . . . Parts Self-Destructed 2 | . . 2 Prevented . | . . . Parts Restored . | . . . Kills | -11 -10 -10 ------- Run | Yrd Mat Sub Combat Hostiles Destroyed 1 | . 1 . Melee 1 | . 1 . Classes Destroyed 1 | . 1 . Swarmer 1 | . 1 . Best Kill Streak 1 | . 1 . Combat Bots Only 1 | . 1 . Max Kills in Single Turn 1 | . 1 . Gunslinging . | . . . Exploded . | . . . Melee 1 | . 1 . Uniques/NPCs Destroyed . | . . . Combat | -11 -10 -10 -------- Run | Yrd Mat Sub Hostile Shots Fired 95 | . 73 22 Missed 41 | . 30 11 Hits 54 | . 43 11 Projectile 54 | . 43 11 Critical Strikes 3 | . 3 . Damage Taken 671 | . 449 222 Core 251 | . 133 118 Absorbed by Shields . | . . . Core Remaining (%) 100 | 100 . . Volleys Fired . | . . . Largest . | . . . Hottest . | . . . Shots Fired . | . . . Gun . | . . . Cannon . | . . . Launcher . | . . . Special . | . . . Kinetic . | . . . Thermal . | . . . Explosive . | . . . Electromagnetic . | . . . Robot Hit Streak . | . . . Robot Miss Streak . | . . . Penetration Max . | . . . Secondary Targets . | . . . Shots Hit Robots . | . . . Core Hits 2 | . 2 . Critical Kills . | . . . Critical Parts Destroyed . | . . . Critical Strikes . | . . . Melee Attacks . | . . . Impact . | . . . Slashing . | . . . Piercing . | . . . Sneak Attacks . | . . . Combat Hostiles . | . . . Follow-up Attacks . | . . . Damage Inflicted 5 | . 5 . Guns . | . . . Cannons . | . . . Explosions . | . . . Melee . | . . . Ramming 5 | . 5 . Kinetic . | . . . Thermal . | . . . Explosive . | . . . Electromagnetic . | . . . Impact . | . . . Slashing . | . . . Piercing . | . . . Highest Corruption . | . . . Average Corruption . | . . . Corruption Purged . | . . . Corruption Blocked . | . . . Overload Shots . | . . . Overflow Damage . | . . . Projectiles . | . . . Explosions . | . . . Melee . | . . . Knockbacks . | . . . Impact . | . . . Kinetic . | . . . Secondary . | . . . Self-Inflicted Damage . | . . . Shots . | . . . Rammed 17 | . 17 . Targets Rammed 18 | . 18 . Kicked . | . . . Crushed 1 | . 1 . Highest Temperature 8 | . 8 . Average Temperature 5 | . 5 . Received Heat Transfer 174 | . 174 . Siege Activations . | . . . Martial Activations . | . . . Shielding Activations . | . . . Robots Disrupted . | . . . Combat Hostiles . | . . . Robots Corrupted . | . . . Combat Hostiles . | . . . Parts Fried . | . . . Impact Corruptions . | . . . Robots Melted . | . . . Combat Hostiles . | . . . Parts Melted . | . . . Heat Transferred . | . . . Parts Sabotaged . | . . . Parts Stolen . | . . . Parts Stripped . | . . . Power Chain Reactions . | . . . Alert | -11 -10 -10 ------- Run | Yrd Mat Sub Maximum Alert Level . | . . . Low Security (%) 100 | 100 100 . Level 1 . | . . . Level 2 . | . . . Level 3 . | . . . Level 4 . | . . . Level 5 . | . . . High Security . | . . . Max Security . | . . . Peak Influence 66 | . 66 . Initial . | . . . Average 18 | . 20 . Influence Increases 137 | . 137 . Destroy 0b10 Robot/C 20 | . 20 . Successful Hack 12 | . 12 . Partial Spotted 15 | . 15 . Lose Combat Pursuer 90 | . 90 . Influence Decreases 137 | . 130 7 Entered New Map 4 | . . 4 Time Decay 113 | . 110 3 Lost Part 20 | . 20 . Squads Dispatched . | . . . Investigation . | . . . Extermination . | . . . Reinforcement . | . . . Assault . | . . . Garrison . | . . . Intercept . | . . . Searches Triggered . | . . . Construction Impeded . | . . . Haulers Reinforced . | . . . Active Scanning Responses . | . . . Cargo Convoy Interrupts . | . . . Stealth | -11 -10 -10 --------- Run | Yrd Mat Sub Distress Signals . | . . . Communications Jammed . | . . . Distress Signals . | . . . Times Spotted 19 | . 15 4 Peak Tracking Total 8 | . 8 2 Tactical Retreats 3 | . 2 1 Traps | -11 -10 -10 ------- Run | Yrd Mat Sub Traps Triggered . | . . . Indirectly . | . . . Trap Hack Attempts . | . . . Triggered . | . . . Disarmed . | . . . Reprogrammed . | . . . Reused . | . . . Traps Extracted . | . . . Installed . | . . . Triggered . | . . . Machines | -11 -10 -10 ---------- Run | Yrd Mat Sub Machines Disabled . | . . . Max in Single Turn . | . . . Machines Repaired . | . . . Machines Dismantled . | . . . Machines Sabotaged . | . . . Overloaded Fab Kills . | . . . Hacking | -11 -10 -10 --------- Run | Yrd Mat Sub Machines Accessed 7 | . 6 1 Terminals 6 | . 6 . Fabricators . | . . . Repair Stations . | . . . Recycling Units . | . . . Scanalyzers . | . . . Garrison Access . | . . . Total Hacks 12 | . 11 1 Successful 7 | . 6 1 Failed 5 | . 5 . Catastrophic 1 | . 1 . Database Lockouts . | . . . Manual 4 | . 4 . Terminals 11 | . 11 . Fabricators . | . . . Repair Stations . | . . . Recycling Units . | . . . Scanalyzers . | . . . Garrison Access . | . . . Terminal Hacks 6 | . 5 1 Robot Analysis 1 | . 1 . Registered Components 1 | . 1 . Zone Layout 3 | . 3 . Proto ID Catalog 1 | . . 1 Fabricator Hacks . | . . . Repair Station Hacks . | . . . Recycling Unit Hacks . | . . . Scanalyzer . | . . . Garrison Access Hacks . | . . . Unauthorized Hacks 1 | . 1 . Terminals 1 | . 1 . Assimilate 1 | . 1 . Fabricators . | . . . Repair Stations . | . . . Recycling Units . | . . . Scanalyzers . | . . . Garrison Access . | . . . Data Cores Recovered . | . . . Used . | . . . Hacking Detections 5 | . 5 . Full Trace Events 1 | . 1 . Feedback Events . | . . . Feedback Blocked . | . . . Robot Schematics Acquired . | . . . Robots Built . | . . . Authchips . | . . . Time . | . . . Total Robot Build Rating . | . . . Part Schematics Acquired . | . . . Parts Built . | . . . Authchips . | . . . Time . | . . . Total Part Build Rating . | . . . Part Studies Acquired . | . . . Parts Repaired . | . . . Time . | . . . Parts Recycled . | . . . Recycled Matter . | . . . Retrieved Matter . | . . . Retrieved Components . | . . . Parts Scanalyzed . | . . . Part Schematics Acquired . | . . . Parts Damaged . | . . . Bothacking | -11 -10 -10 ------------ Run | Yrd Mat Sub Used RIF Installer . | . . . Robots Hacked . | . . . Non-combat . | . . . Combat . | . . . Robot Hacks Applied . | . . . Relay Couplers Released . | . . . Fabnet Peak Effective % . | . . . Robots Rewired . | . . . Allies Hacked . | . . . Hacks Repelled . | . . . Allies | -11 -10 -10 -------- Run | Yrd Mat Sub Total Allies . | . . . Largest Group . | . . . Highest-Rated Group . | . . . Highest-Rated Ally . | . . . Total Orders . | . . . Ally Attacks . | . . . Total Damage . | . . . Kills . | . . . Allies Corrupted . | . . . Allies Melted . | . . . Intel | -11 -10 -10 ------- Run | Yrd Mat Sub Active Infowar (turns) 1113 | . 358 755 Structural 1113 | . 358 755 Seismic 838 | . 332 506 Robot Analysis Total 1 | . 1 . Derelict Logs Recovered 1 | . . 1 Drone Launches . | . . . Drone Recoveries . | . . . Exploration | -11 -10 -10 ------------- Run | Yrd Mat Sub Turns Passed 1174 | 25 394 755 Spaces Moved 1634 | 35 572 1027 Core 382 | 35 262 85 Treads 5 | . 5 . Legs . | . . . Wheels . | . . . Hover . | . . . Flight 1247 | . 305 942 Fastest Speed 32 | 50 40 32 Average Speed 41 | 50 45 39 Slowest Speed 160 | 50 160 100 Overloaded Moves . | . . . Propulsion Burnouts . | . . . Robots Hopped 11 | . 11 . Potential Cave-ins . | . . . Cave-ins Triggered . | . . . Exploration Rate (%) 35 | 3 82 22 Regions Visited 2 Branch Regions 1 Pre-discovered Areas . | . . . Known Exits Taken . | . . . Unknown Exits Taken 2 | 1 1 . Scrap Searched 3 | . . 3 Spaces Dug . | . . . Terrain Destroyed . | . . . Melee . | . . . Projectile . | . . . AOE . | . . . Terrain Rammed . | . . . Walls Destroyed . | . . . Machines Disabled . | . . . Actions | -11 -10 -10 --------- Run | Yrd Mat Sub Total 2101 | 40 683 1378 Wait 436 | . 91 345 Move 1612 | 34 551 1027 Hop 9 | . 9 . Pick Up 9 | 4 5 . Fast Attach 7 | 2 4 1 Attach 3 | . . 3 Detach 1 | . . 1 Swap . | . . . Drop 6 | . 5 1 Fire . | . . . Melee . | . . . Ram . | . . . Kick . | . . . Crush 18 | . 18 . Escape Stasis . | . . . Rewire . | . . . Trap . | . . . Miscellaneous . | . . . Route ------- -11/Scrapyard -10/Materials (discovered 4 exits: [*Mat x2] / [*Min] / *Sub) -10/Subcaves (discovered 2 exits: Rec / [*Scr]) History --------- Turn | Location | Event 5 | -11/Scrapyard | Discovered new exit (range 14) 26 | -11/Scrapyard | Entered Materials 44 | -10/Materials | Discovered new exit (range 15) 80 | -10/Materials | Discovered new exit (range 3) 164 | -10/Materials | Discovered new exit (range 10) 225 | -10/Materials | Core integrity fell below 50% 307 | -10/Materials | Build established: Mutant 343 | -10/Materials | Discovered new exit (range 11) 420 | -10/Materials | Entered Subcaves 421 | -10/Subcaves | Approached by a straggling Scientist 514 | -10/Subcaves | Identified exit to Recycling 549 | -10/Subcaves | Visited 4L-MR0's lab 595 | -10/Subcaves | Shifting Twisted Machinery released Sub. Optics 598 | -10/Subcaves | Ambushed by Subdwellers from Twisted Machinery 598 | -10/Subcaves | Shifting Twisted Machinery released Battle Rifle 1172 | -10/Subcaves | Core integrity fell below 20% 1175 | -10/Subcaves | Destroyed by LE-X65(R) with Subdweller Machine Gun Last Messages --------------- 00561_ Acquired 20 matter. 00563_ Subatomizers dissect the Mak. Light Armor Plating. Sub. Optics falls loose from the Twisted Machinery. 00598_ I7-QAH(R) emerges from the Twisted Machinery. Battle Rifle falls loose from the Twisted Machinery. 00926_ Seismic Detector destroyed. 00934_ Flight Unit destroyed. 01052_ Subatomizers dissect the Flamer, destroying it. 01058_ Acquired Mak. Light Armor Plating. 01060_ Dropped Mak. Light Armor Plating. 01063_ Subatomizers dissect the Mak. Light Armor Plating, destroying it. 01146_ 4L-MR0's Prototype Logs disabled. 01155_ Machine disabled. 01169_ VTOL Module destroyed. Map ----- +----------------------------------------------------+ | | | | | | | | | | | | | | | | | | | | | | | | | | | | | | | | | ?????????????????????????????????????????????????? | | ?????????????????????????????????????????????????? | | ?????????????????????????????????????????????????? | | ?????????????????????????????????????????????????? | | ???????????????###############???????????????????? | | ???????????????###############???????????????????? | | ???????????????## "# """"" "##???????????????????? | | ##?????????????##="/ " "####?????????????????? | | ##????????????##### R ######?????????????????? | | ##????????????##### @/ <##?????????????????? | | ###???????????## ########### ##?????????????????? | | ###???????????##%########### ##?????????????????? | | ##???????????## #####" "##?????????????????? | | ###??????????###" # "##?????????????????? | | ###???????###### "## ^ ###?????????????????? | | ##????############ ## ""####?????????????????? | | ########### ####" "########?????????????????? | | ######## ## " ### ###????????????????? | | #### # ###????????????????? | | ### ## ##????????????????? | | ## ## ## ##????????????????? | | # ##### ###????????????????? | | # > ### ###### ###????????????????? | | #### ## #### ##????????????????? | | ##### ### ### ###????????????????? | | #### ##### ### ###????????????????? | | ##### ##### #### ###?????????????????? | | #### ##### #### ###?????????????????? | | ##### ## ###### ###????????????????? | | #### ##### #####???????????????? | | ## ## ## # ##############????? | | # ###### ################## | | # ###### # # ## #### ####### | | "# ##### ### ## ## ## | +----------------------------------------------------+ Best States ------------- Heat Dissipation 25 Energy Generation 5 Energy Capacity 100 Matter Stores 300 Matter Capacity 300 Sight Range 16 Terrain Scan Density 10 Armor Coverage 100 Evasion (%) 63 Recoil Reduction 2 Item Schematics ----------------- None Robot Schematics ------------------ None Fabricated ------------ Nothing Repaired ---------- Nothing Studied --------- None Alien Tech Used ----------------- None Achievements -------------- None Challenges ------------ None Game ------ Seed OvertunedNetworkScrapsphere Manual? 0 Play Time 00:17:52 Cumulative 681.9 hours Start 2026.03.31 @ 22:46:04 End 2026.03.31 @ 22:57:51 Sessions 1 Manual Loads 0 Difficulty Rogue Special Mode None Game No. 370 Rogue 370 Adventurer 0 Explorer 0 Win Type - Total 30 Types 15/1/6/2/1/1/1/2/1/0 Lore% 92 Gallery% 86 Achievement% 78 Wizard Run 0 Options --------- Layout 1 ASCII 0 Keyboard 0 Movement Numpad Keybinds 0 Fullscreen 2 Font 24/Smallcaps Map View 50x40 Zoom Use 0% Tactical HUD 1 Map Filters NONE Filters NONE Steam 1 RUN: 0155d75f-808b-4f36-88ce-b645086f7161